[Event "Late-Titled-Tuesday-Blitz-October-24-2023"]
[Site "Chess.com"]
[Date "2023.10.24"]
[Round "4"]
[White "yosephtaher"]
[Black "The_Straightforward_Rook"]
[Result "1-0"]
[WhiteElo "2752"]
[BlackElo "2574"]
[TimeControl "180+1"]
[EndTime "14:40:34 PDT"]
[Termination "yosephtaher won by checkmate"]

1. d4 {[%clk 0:03:00.9]} 1... Nf6 {[%clk 0:02:59.4]} 2. Nc3 {[%clk 0:03:01.4]}
2... d5 {[%clk 0:02:59.1]} 3. Bf4 {[%clk 0:03:01.8]} 3... e6 {[%clk 0:02:59.4]}
4. Nb5 {[%clk 0:03:01.8]} 4... Na6 {[%clk 0:02:59]} 5. e3 {[%clk 0:03:02.4]}
5... Be7 {[%clk 0:02:59.5]} 6. Nf3 {[%clk 0:03:02.4]} 6... O-O {[%clk 0:03:00]}
7. Ne5 {[%clk 0:03:02.9]} 7... Ne4 {[%clk 0:02:54.2]} 8. f3 {[%clk 0:02:57.7]}
8... Nf6 {[%clk 0:02:53.6]} 9. a3 {[%clk 0:02:53.9]} 9... c6 {[%clk 0:02:40.5]}
10. Nc3 {[%clk 0:02:53.4]} 10... c5 {[%clk 0:02:40.4]} 11. Bxa6 {[%clk
0:02:52.7]} 11... bxa6 {[%clk 0:02:41.3]} 12. Nc6 {[%clk 0:02:53.1]} 12... Qe8
{[%clk 0:02:38.7]} 13. Nxe7+ {[%clk 0:02:53.5]} 13... Qxe7 {[%clk 0:02:39.6]}
14. dxc5 {[%clk 0:02:54.4]} 14... Qxc5 {[%clk 0:02:38.9]} 15. Qd4 {[%clk
0:02:55.1]} 15... Qb6 {[%clk 0:02:35.6]} 16. Be5 {[%clk 0:02:43.3]} 16... Ne8
{[%clk 0:02:21]} 17. O-O-O {[%clk 0:02:39]} 17... f6 {[%clk 0:02:16.9]} 18. Bg3
{[%clk 0:02:35]} 18... Rf7 {[%clk 0:02:14.9]} 19. Qxb6 {[%clk 0:02:24.6]} 19...
axb6 {[%clk 0:02:14.1]} 20. Na4 {[%clk 0:02:24.9]} 20... Rb7 {[%clk 0:02:09.1]}
21. e4 {[%clk 0:02:24]} 21... dxe4 {[%clk 0:01:57.2]} 22. Rd8 {[%clk 0:02:22.2]}
22... Kf7 {[%clk 0:01:53.9]} 23. fxe4 {[%clk 0:02:19.6]} 23... e5 {[%clk
0:01:43.8]} 24. Bf2 {[%clk 0:02:12]} 24... Rab8 {[%clk 0:01:41.5]} 25. Nxb6
{[%clk 0:02:07.2]} 25... Be6 {[%clk 0:01:35.3]} 26. Rxb8 {[%clk 0:02:07.1]}
26... Rxb8 {[%clk 0:01:36.2]} 27. Rd1 {[%clk 0:02:06.5]} 27... g5 {[%clk
0:01:26.2]} 28. Na4 {[%clk 0:02:05]} 28... Rc8 {[%clk 0:01:22.1]} 29. Nc5 {[%clk
0:02:00.4]} 29... a5 {[%clk 0:01:13.7]} 30. Nb7 {[%clk 0:01:40.3]} 30... h5
{[%clk 0:01:07.1]} 31. Nxa5 {[%clk 0:01:38]} 31... Kg6 {[%clk 0:01:02.9]} 32.
Nb7 {[%clk 0:01:34.7]} 32... g4 {[%clk 0:00:54.2]} 33. Nd6 {[%clk 0:01:32.7]}
33... Nxd6 {[%clk 0:00:49.8]} 34. Rxd6 {[%clk 0:01:33.6]} 34... Bb3 {[%clk
0:00:50.4]} 35. c3 {[%clk 0:01:27.4]} 35... Rc4 {[%clk 0:00:50.2]} 36. Bh4
{[%clk 0:01:27.5]} 36... Rxe4 {[%clk 0:00:50.1]} 37. Rxf6+ {[%clk 0:01:27.4]}
37... Kg7 {[%clk 0:00:50.5]} 38. Rb6 {[%clk 0:01:25.9]} 38... Bf7 {[%clk
0:00:41.8]} 39. Kd2 {[%clk 0:01:22.6]} 39... Bc4 {[%clk 0:00:39.7]} 40. Rb4
{[%clk 0:01:17.3]} 40... Re2+ {[%clk 0:00:39.1]} 41. Kd1 {[%clk 0:01:16.5]}
41... Ba6 {[%clk 0:00:38.8]} 42. Rb6 {[%clk 0:01:01.2]} 42... Bd3 {[%clk
0:00:38.4]} 43. a4 {[%clk 0:00:53.1]} 43... Rxg2 {[%clk 0:00:34.5]} 44. Bf6+
{[%clk 0:00:53]} 44... Kf7 {[%clk 0:00:31.9]} 45. Bxe5 {[%clk 0:00:53.2]} 45...
Bc2+ {[%clk 0:00:32.4]} 46. Ke1 {[%clk 0:00:53.1]} 46... Bxa4 {[%clk 0:00:32.6]}
47. c4 {[%clk 0:00:46.5]} 47... h4 {[%clk 0:00:28.1]} 48. Rh6 {[%clk 0:00:44.8]}
48... h3 {[%clk 0:00:25.2]} 49. b4 {[%clk 0:00:39.8]} 49... Bb3 {[%clk
0:00:21.7]} 50. c5 {[%clk 0:00:40.1]} 50... Bc4 {[%clk 0:00:22.1]} 51. Kd1
{[%clk 0:00:35.8]} 51... Bb3+ {[%clk 0:00:20.1]} 52. Kc1 {[%clk 0:00:36.3]}
52... Re2 {[%clk 0:00:19.4]} 53. Bg3 {[%clk 0:00:32.6]} 53... Bd5 {[%clk
0:00:18.9]} 54. b5 {[%clk 0:00:30.9]} 54... Ke7 {[%clk 0:00:15.7]} 55. b6 {[%clk
0:00:31.1]} 55... Kd7 {[%clk 0:00:15.4]} 56. Rd6+ {[%clk 0:00:30.8]} 56... Kc8
{[%clk 0:00:15]} 57. Rxd5 {[%clk 0:00:31.7]} 57... Rg2 {[%clk 0:00:14.4]} 58. c6
{[%clk 0:00:30.9]} 58... Rc2+ {[%clk 0:00:10.9]} 59. Kd1 {[%clk 0:00:26.5]}
59... Rd2+ {[%clk 0:00:11.5]} 60. Ke1 {[%clk 0:00:25.3]} 60... Re2+ {[%clk
0:00:09.9]} 61. Kf1 {[%clk 0:00:25.8]} 61... Re8 {[%clk 0:00:04.9]} 62. b7#
{[%clk 0:00:25.7]} 1-0

[Event "Late-Titled-Tuesday-Blitz-October-24-2023"]
[Site "Chess.com"]
[Date "2023.10.24"]
[Round "4"]
[White "financieru"]
[Black "DanielTitichoca"]
[Result "1-0"]
[WhiteElo "2391"]
[BlackElo "2622"]
[TimeControl "180+1"]
[EndTime "14:40:36 PDT"]
[Termination "financieru won by checkmate"]

1. d4 {[%clk 0:02:59.8]} 1... g6 {[%clk 0:02:59.5]} 2. c4 {[%clk 0:03:00.5]}
2... Bg7 {[%clk 0:03:00.4]} 3. Nc3 {[%clk 0:03:01.1]} 3... d6 {[%clk 0:03:00.9]}
4. e4 {[%clk 0:03:01.5]} 4... c5 {[%clk 0:02:59.3]} 5. d5 {[%clk 0:02:58.8]}
5... Bxc3+ {[%clk 0:02:57.7]} 6. bxc3 {[%clk 0:02:59]} 6... Nf6 {[%clk
0:02:58.3]} 7. f3 {[%clk 0:02:44.2]} 7... O-O {[%clk 0:02:57.2]} 8. Bd3 {[%clk
0:02:44.8]} 8... e5 {[%clk 0:02:53]} 9. dxe6 {[%clk 0:02:39.6]} 9... Bxe6 {[%clk
0:02:51.3]} 10. Ne2 {[%clk 0:02:39.6]} 10... Nc6 {[%clk 0:02:51.1]} 11. Bg5
{[%clk 0:02:34.4]} 11... Ne5 {[%clk 0:02:40.1]} 12. Qd2 {[%clk 0:02:10.2]} 12...
Kg7 {[%clk 0:01:53.1]} 13. Bh6+ {[%clk 0:02:06.8]} 13... Kg8 {[%clk 0:01:53.1]}
14. Bxf8 {[%clk 0:02:06.9]} 14... Qxf8 {[%clk 0:01:53.8]} 15. O-O {[%clk
0:02:07.5]} 15... Bxc4 {[%clk 0:01:47.8]} 16. Bxc4 {[%clk 0:01:50.6]} 16... Nxc4
{[%clk 0:01:48.7]} 17. Qf4 {[%clk 0:01:51]} 17... Nh5 {[%clk 0:01:45.3]} 18. Qc1
{[%clk 0:01:46.4]} 18... f5 {[%clk 0:01:40.9]} 19. exf5 {[%clk 0:01:44.5]} 19...
Qxf5 {[%clk 0:01:40.2]} 20. Ng3 {[%clk 0:01:31.1]} 20... Nxg3 {[%clk 0:01:36]}
21. hxg3 {[%clk 0:01:32]} 21... Ne5 {[%clk 0:01:28.2]} 22. Qd2 {[%clk
0:01:24.2]} 22... Nc4 {[%clk 0:01:25.7]} 23. Qe2 {[%clk 0:01:18.2]} 23... d5
{[%clk 0:01:25.8]} 24. Rfe1 {[%clk 0:01:15.4]} 24... Rd8 {[%clk 0:01:06.6]} 25.
Qe7 {[%clk 0:01:03.2]} 25... Qd7 {[%clk 0:01:00]} 26. Qxc5 {[%clk 0:01:00.2]}
26... b6 {[%clk 0:00:59.9]} 27. Qd4 {[%clk 0:00:59.9]} 27... Qd6 {[%clk
0:01:00.5]} 28. Qf4 {[%clk 0:00:57]} 28... Qxf4 {[%clk 0:00:54.8]} 29. gxf4
{[%clk 0:00:57.9]} 29... Rf8 {[%clk 0:00:55.2]} 30. Re7 {[%clk 0:00:53.1]} 30...
a5 {[%clk 0:00:49.3]} 31. Rae1 {[%clk 0:00:47.6]} 31... Rxf4 {[%clk 0:00:49]}
32. Rd7 {[%clk 0:00:48.3]} 32... Rf7 {[%clk 0:00:24.9]} 33. Re8+ {[%clk
0:00:36.6]} 33... Kg7 {[%clk 0:00:24.8]} 34. Red8 {[%clk 0:00:37.3]} 34... b5
{[%clk 0:00:10.9]} 35. Rxf7+ {[%clk 0:00:37.3]} 35... Kxf7 {[%clk 0:00:11.8]}
36. Rxd5 {[%clk 0:00:37.4]} 36... Ke6 {[%clk 0:00:11.3]} 37. Rxb5 {[%clk
0:00:37.2]} 37... a4 {[%clk 0:00:12.2]} 38. Rb4 {[%clk 0:00:36.7]} 38... Kd5
{[%clk 0:00:12.5]} 39. Rxa4 {[%clk 0:00:36.7]} 39... Ne3 {[%clk 0:00:13.1]} 40.
Ra7 {[%clk 0:00:36.3]} 40... h5 {[%clk 0:00:12.7]} 41. Rg7 {[%clk 0:00:36.4]}
41... Kc4 {[%clk 0:00:13.2]} 42. Rxg6 {[%clk 0:00:36.1]} 42... Kxc3 {[%clk
0:00:13.9]} 43. Ra6 {[%clk 0:00:35.8]} 43... Nc4 {[%clk 0:00:13.7]} 44. Kf2
{[%clk 0:00:35.8]} 44... Kb4 {[%clk 0:00:14.6]} 45. g4 {[%clk 0:00:34.7]} 45...
hxg4 {[%clk 0:00:14.4]} 46. fxg4 {[%clk 0:00:35.3]} 46... Ne5 {[%clk 0:00:15.3]}
47. Kg3 {[%clk 0:00:35.3]} 47... Kb5 {[%clk 0:00:14.7]} 48. Ra8 {[%clk
0:00:34.7]} 48... Kb4 {[%clk 0:00:13.9]} 49. Kf4 {[%clk 0:00:34.6]} 49... Nd3+
{[%clk 0:00:13.8]} 50. Kf5 {[%clk 0:00:34.9]} 50... Nc5 {[%clk 0:00:14.6]} 51.
g5 {[%clk 0:00:34]} 51... Kc3 {[%clk 0:00:15.2]} 52. g6 {[%clk 0:00:34.2]} 52...
Kb2 {[%clk 0:00:15.8]} 53. g7 {[%clk 0:00:33.9]} 53... Ka1 {[%clk 0:00:16.6]}
54. g8=Q {[%clk 0:00:31.2]} 54... Nd3 {[%clk 0:00:17.4]} 55. a4 {[%clk
0:00:30.1]} 55... Nb4 {[%clk 0:00:14.2]} 56. a5 {[%clk 0:00:28.6]} 56... Nc2
{[%clk 0:00:14.7]} 57. a6 {[%clk 0:00:29.3]} 57... Ne3+ {[%clk 0:00:15]} 58. Ke4
{[%clk 0:00:29.3]} 58... Nd1 {[%clk 0:00:14.4]} 59. Qg1 {[%clk 0:00:28.2]} 59...
Ka2 {[%clk 0:00:13.6]} 60. Qxd1 {[%clk 0:00:27.2]} 60... Ka3 {[%clk 0:00:14.5]}
61. a7 {[%clk 0:00:21.9]} 61... Ka2 {[%clk 0:00:15.4]} 62. Rb8 {[%clk
0:00:20.1]} 62... Ka3 {[%clk 0:00:16.3]} 63. a8=Q# {[%clk 0:00:20.6]} 1-0

[Event "Late-Titled-Tuesday-Blitz-October-24-2023"]
[Site "Chess.com"]
[Date "2023.10.24"]
[Round "4"]
[White "topin8"]
[Black "le-castor-faineant"]
[Result "1-0"]
[WhiteElo "2454"]
[BlackElo "2260"]
[TimeControl "180+1"]
[EndTime "14:40:44 PDT"]
[Termination "topin8 won by resignation"]

1. e4 {[%clk 0:02:59.5]} 1... e5 {[%clk 0:02:58.7]} 2. Nf3 {[%clk 0:02:59.7]}
2... Nf6 {[%clk 0:02:58.9]} 3. d4 {[%clk 0:02:59.1]} 3... Nxe4 {[%clk
0:02:57.6]} 4. Bd3 {[%clk 0:02:56.5]} 4... d5 {[%clk 0:02:57.1]} 5. Nxe5 {[%clk
0:02:57]} 5... Bd6 {[%clk 0:02:57]} 6. O-O {[%clk 0:02:55.3]} 6... Nd7 {[%clk
0:02:54.6]} 7. Nxd7 {[%clk 0:02:54.8]} 7... Bxd7 {[%clk 0:02:53.5]} 8. c4 {[%clk
0:02:33.1]} 8... Qh4 {[%clk 0:02:46.6]} 9. g3 {[%clk 0:02:32.2]} 9... Qh3 {[%clk
0:02:21.3]} 10. cxd5 {[%clk 0:02:22.9]} 10... Nf6 {[%clk 0:01:56.2]} 11. Re1+
{[%clk 0:02:06.9]} 11... Kf8 {[%clk 0:01:50.4]} 12. Bf1 {[%clk 0:02:05.6]} 12...
Qf5 {[%clk 0:01:43.2]} 13. Nc3 {[%clk 0:01:58.6]} 13... Nxd5 {[%clk 0:01:36.7]}
14. Bg2 {[%clk 0:01:43.5]} 14... Bc6 {[%clk 0:01:26.4]} 15. Ne4 {[%clk
0:01:34.1]} 15... h5 {[%clk 0:01:15.1]} 16. Nxd6 {[%clk 0:01:27.5]} 16... cxd6
{[%clk 0:01:16]} 17. Be4 {[%clk 0:00:46.5]} 17... Qh3 {[%clk 0:01:01.4]} 18. Qf3
{[%clk 0:00:44.5]} 18... Re8 {[%clk 0:00:52.7]} 19. Bd2 {[%clk 0:00:28.5]} 19...
Rxe4 {[%clk 0:00:49.1]} 20. Rxe4 {[%clk 0:00:12]} 20... Nf6 {[%clk 0:00:45.2]}
21. Rh4 {[%clk 0:00:05.5]} 21... Qxh4 {[%clk 0:00:35]} 22. Qxc6 {[%clk
0:00:04.7]} 22... Qxd4 {[%clk 0:00:32.7]} 23. Qc8+ {[%clk 0:00:03.8]} 23... Ne8
{[%clk 0:00:28.8]} 24. Bc3 {[%clk 0:00:02.7]} 24... Qa4 {[%clk 0:00:26]} 25. Re1
{[%clk 0:00:02.4]} 25... f6 {[%clk 0:00:23.8]} 26. b3 {[%clk 0:00:02.2]} 26...
Qc6 {[%clk 0:00:22.9]} 27. Qd8 {[%clk 0:00:01.4]} 27... Kf7 {[%clk 0:00:22.7]}
28. Qe7+ {[%clk 0:00:01.5]} 28... Kg6 {[%clk 0:00:20.8]} 29. Qe3 {[%clk
0:00:02.4]} 29... Nc7 {[%clk 0:00:19.3]} 30. Qd3+ {[%clk 0:00:02.9]} 30... Kf7
{[%clk 0:00:17.1]} 31. Bd2 {[%clk 0:00:03.4]} 31... Re8 {[%clk 0:00:16.3]} 32.
Rc1 {[%clk 0:00:03.7]} 32... Qd7 {[%clk 0:00:16]} 33. Qc4+ {[%clk 0:00:03.7]}
33... Ne6 {[%clk 0:00:15.2]} 34. Qe2 {[%clk 0:00:04.2]} 34... Nd4 {[%clk
0:00:14.5]} 35. Qxh5+ {[%clk 0:00:04.3]} 35... Kg8 {[%clk 0:00:13.2]} 36. Qd5+
{[%clk 0:00:04.7]} 36... Ne6 {[%clk 0:00:12.2]} 37. f4 {[%clk 0:00:05.2]} 37...
Kf8 {[%clk 0:00:09.6]} 38. Be3 {[%clk 0:00:04.6]} 38... Nc7 {[%clk 0:00:08]} 39.
Qd2 {[%clk 0:00:04.3]} 39... d5 {[%clk 0:00:06]} 40. Bc5+ {[%clk 0:00:04.3]}
40... Kg8 {[%clk 0:00:05.9]} 41. Bd4 {[%clk 0:00:04.7]} 41... Ne6 {[%clk
0:00:06]} 42. Bf2 {[%clk 0:00:03.5]} 42... d4 {[%clk 0:00:05.7]} 43. Rc4 {[%clk
0:00:01.6]} 43... d3 {[%clk 0:00:05.8]} 44. h4 {[%clk 0:00:02]} 44... Rd8 {[%clk
0:00:06.1]} 45. f5 {[%clk 0:00:02.2]} 45... Nf8 {[%clk 0:00:05.8]} 46. Rd4
{[%clk 0:00:02.7]} 46... Qe8 {[%clk 0:00:05.1]} 47. Rxd3 {[%clk 0:00:02.8]}
47... Rxd3 {[%clk 0:00:05.1]} 48. Qxd3 {[%clk 0:00:03.7]} 48... Nd7 {[%clk
0:00:04.9]} 49. Qc4+ {[%clk 0:00:04.2]} 49... Kf8 {[%clk 0:00:04.5]} 50. Qb4+
{[%clk 0:00:04.7]} 50... Kg8 {[%clk 0:00:04.4]} 51. Qxb7 {[%clk 0:00:05.1]}
51... Ne5 {[%clk 0:00:04.2]} 52. Qd5+ {[%clk 0:00:05.3]} 52... Kh8 {[%clk
0:00:04]} 53. Kg2 {[%clk 0:00:05.6]} 53... Qb5 {[%clk 0:00:04]} 54. Qxb5 {[%clk
0:00:05.7]} 1-0

[Event "Late-Titled-Tuesday-Blitz-October-24-2023"]
[Site "Chess.com"]
[Date "2023.10.24"]
[Round "4"]
[White "Duhless"]
[Black "vladislavkovalev"]
[Result "1-0"]
[WhiteElo "3116"]
[BlackElo "2869"]
[TimeControl "180+1"]
[EndTime "14:40:45 PDT"]
[Termination "Duhless won by resignation"]

1. d4 {[%clk 0:03:00.9]} 1... Nf6 {[%clk 0:03:00.6]} 2. Nf3 {[%clk 0:02:59.9]}
2... e6 {[%clk 0:03:01.1]} 3. c4 {[%clk 0:02:59.4]} 3... b6 {[%clk 0:03:01.5]}
4. g3 {[%clk 0:02:59.4]} 4... Ba6 {[%clk 0:03:01.8]} 5. Qc2 {[%clk 0:02:58.8]}
5... Bb7 {[%clk 0:02:59.1]} 6. Bg2 {[%clk 0:02:55.1]} 6... Bb4+ {[%clk
0:02:58.2]} 7. Nbd2 {[%clk 0:02:53.7]} 7... Be4 {[%clk 0:02:50.8]} 8. Qd1 {[%clk
0:02:51.8]} 8... Bxd2+ {[%clk 0:02:49.9]} 9. Qxd2 {[%clk 0:02:51.1]} 9... O-O
{[%clk 0:02:50.2]} 10. O-O {[%clk 0:02:50.6]} 10... d6 {[%clk 0:02:50.6]} 11. b3
{[%clk 0:02:50.6]} 11... Nbd7 {[%clk 0:02:50.6]} 12. Bb2 {[%clk 0:02:50.9]}
12... h6 {[%clk 0:02:47]} 13. Qc3 {[%clk 0:02:49.8]} 13... Bb7 {[%clk
0:02:41.4]} 14. d5 {[%clk 0:02:46.5]} 14... exd5 {[%clk 0:02:36]} 15. Nh4 {[%clk
0:02:46.3]} 15... Re8 {[%clk 0:01:55.2]} 16. Rfe1 {[%clk 0:02:37.9]} 16... Ne5
{[%clk 0:01:50.2]} 17. Rad1 {[%clk 0:02:32.8]} 17... Ne4 {[%clk 0:01:29.5]} 18.
Qc2 {[%clk 0:02:26.5]} 18... Ng4 {[%clk 0:01:19.4]} 19. Rf1 {[%clk 0:02:00]}
19... dxc4 {[%clk 0:01:16.9]} 20. Qxc4 {[%clk 0:01:53.9]} 20... d5 {[%clk
0:00:47.7]} 21. Qd4 {[%clk 0:01:49]} 21... Ngf6 {[%clk 0:00:48.3]} 22. Nf5
{[%clk 0:01:33.5]} 22... c5 {[%clk 0:00:48.7]} 23. Qd3 {[%clk 0:01:34.1]} 23...
d4 {[%clk 0:00:32.4]} 24. e3 {[%clk 0:01:29.7]} 24... Qc8 {[%clk 0:00:29.6]} 25.
Bh3 {[%clk 0:01:24.2]} 25... Qc6 {[%clk 0:00:17.1]} 26. f3 {[%clk 0:01:05.4]}
26... Ng5 {[%clk 0:00:16]} 27. Bg2 {[%clk 0:01:06.1]} 27... Qe6 {[%clk
0:00:10.4]} 28. Rde1 {[%clk 0:00:59.3]} 28... Rad8 {[%clk 0:00:09.4]} 29. exd4
{[%clk 0:00:57.4]} 29... Qxe1 {[%clk 0:00:09.4]} 30. Rxe1 {[%clk 0:00:57.2]}
30... Rxe1+ {[%clk 0:00:10.3]} 31. Kf2 {[%clk 0:00:57.9]} 31... Re6 {[%clk
0:00:08.2]} 32. h4 {[%clk 0:00:54.4]} 32... Ngh7 {[%clk 0:00:06.6]} 33. Bh3
{[%clk 0:00:51.8]} 33... Ree8 {[%clk 0:00:02.3]} 34. Qc2 {[%clk 0:00:52.3]}
34... cxd4 {[%clk 0:00:01.6]} 35. Nxd4 {[%clk 0:00:49.2]} 35... Bc8 {[%clk
0:00:01.6]} 36. Bf1 {[%clk 0:00:46.9]} 36... Bd7 {[%clk 0:00:01.9]} 37. Ba6
{[%clk 0:00:38.3]} 37... Nf8 {[%clk 0:00:02.4]} 38. b4 {[%clk 0:00:35.6]} 38...
Ne6 {[%clk 0:00:03]} 39. Nf5 {[%clk 0:00:36]} 39... Nf8 {[%clk 0:00:01.7]} 40.
Nxh6+ {[%clk 0:00:33.8]} 40... gxh6 {[%clk 0:00:02.6]} 41. Bxf6 {[%clk
0:00:33.6]} 41... Rb8 {[%clk 0:00:02.9]} 42. Qd2 {[%clk 0:00:30.3]} 42... Re6
{[%clk 0:00:01.7]} 43. Qxh6 {[%clk 0:00:28.9]} 43... Rxf6 {[%clk 0:00:02.2]} 44.
Qxf6 {[%clk 0:00:29.5]} 44... Re8 {[%clk 0:00:02.4]} 45. Bc4 {[%clk 0:00:28.5]}
45... Be6 {[%clk 0:00:03.3]} 46. Bd3 {[%clk 0:00:27.9]} 46... Bxa2 {[%clk
0:00:02.9]} 47. h5 {[%clk 0:00:26.5]} 47... Re6 {[%clk 0:00:02.6]} 48. Qg5+
{[%clk 0:00:26.4]} 48... Kh8 {[%clk 0:00:03.2]} 49. Qd8 {[%clk 0:00:23.7]} 49...
Kg8 {[%clk 0:00:03]} 50. h6 {[%clk 0:00:24.5]} 50... Rxh6 {[%clk 0:00:01.8]} 51.
Qg5+ {[%clk 0:00:24.8]} 51... Rg6 {[%clk 0:00:01.3]} 52. Bxg6 {[%clk 0:00:25.4]}
52... Nxg6 {[%clk 0:00:02.2]} 53. f4 {[%clk 0:00:20.7]} 53... Kf8 {[%clk
0:00:02.6]} 54. Qd8+ {[%clk 0:00:17.7]} 54... Kg7 {[%clk 0:00:02.9]} 55. Qd4+
{[%clk 0:00:18.5]} 55... Kg8 {[%clk 0:00:03]} 56. Qa1 {[%clk 0:00:19.2]} 56...
Be6 {[%clk 0:00:02.3]} 57. Qxa7 {[%clk 0:00:19.1]} 57... b5 {[%clk 0:00:02.3]}
58. Qb8+ {[%clk 0:00:19.5]} 58... Kg7 {[%clk 0:00:02.9]} 59. Qxb5 {[%clk
0:00:20.4]} 59... Ne7 {[%clk 0:00:03.6]} 60. Qg5+ {[%clk 0:00:20.2]} 60... Kf8
{[%clk 0:00:03.9]} 61. b5 {[%clk 0:00:20.7]} 61... Nd5 {[%clk 0:00:04.7]} 62.
Qe5 {[%clk 0:00:20.5]} 62... Ne7 {[%clk 0:00:02.3]} 63. Qd6 {[%clk 0:00:20.4]}
1-0

[Event "Late-Titled-Tuesday-Blitz-October-24-2023"]
[Site "Chess.com"]
[Date "2023.10.24"]
[Round "4"]
[White "chesspreceptor"]
[Black "Fandorine"]
[Result "0-1"]
[WhiteElo "2615"]
[BlackElo "2912"]
[TimeControl "180+1"]
[EndTime "14:40:46 PDT"]
[Termination "Fandorine won by resignation"]

1. e4 {[%clk 0:03:00.9]} 1... c5 {[%clk 0:02:58.8]} 2. Nf3 {[%clk 0:03:01.4]}
2... g6 {[%clk 0:02:58.9]} 3. d4 {[%clk 0:03:00.4]} 3... cxd4 {[%clk 0:02:59.8]}
4. Qxd4 {[%clk 0:03:00.6]} 4... Nf6 {[%clk 0:02:59.6]} 5. c4 {[%clk 0:03:01.1]}
5... Nc6 {[%clk 0:02:58.7]} 6. Qe3 {[%clk 0:03:01.3]} 6... d6 {[%clk 0:02:58.9]}
7. Nc3 {[%clk 0:03:01.1]} 7... Bg4 {[%clk 0:02:57.3]} 8. Be2 {[%clk 0:02:59.2]}
8... Bg7 {[%clk 0:02:56.5]} 9. O-O {[%clk 0:02:58.4]} 9... O-O {[%clk
0:02:56.8]} 10. Rb1 {[%clk 0:02:55.8]} 10... Nd7 {[%clk 0:02:51.4]} 11. b3
{[%clk 0:02:51.9]} 11... Qb6 {[%clk 0:02:50.8]} 12. Qd2 {[%clk 0:02:41.5]} 12...
Bxf3 {[%clk 0:02:35.3]} 13. Bxf3 {[%clk 0:02:42.4]} 13... Qd4 {[%clk 0:02:35.4]}
14. Nd5 {[%clk 0:02:06.1]} 14... e6 {[%clk 0:02:16.3]} 15. Nc7 {[%clk
0:02:01.5]} 15... Rad8 {[%clk 0:02:11.5]} 16. Nb5 {[%clk 0:02:00.7]} 16... Qxd2
{[%clk 0:02:08.3]} 17. Bxd2 {[%clk 0:02:01.6]} 17... Nde5 {[%clk 0:01:53.4]} 18.
Be2 {[%clk 0:01:57.1]} 18... a6 {[%clk 0:01:53.3]} 19. Nc3 {[%clk 0:01:54]}
19... Nd4 {[%clk 0:01:53.6]} 20. Be3 {[%clk 0:01:44.3]} 20... Nec6 {[%clk
0:01:49]} 21. Rfd1 {[%clk 0:01:35.4]} 21... f5 {[%clk 0:01:42.1]} 22. Bg5 {[%clk
0:01:23.4]} 22... Rd7 {[%clk 0:01:34.8]} 23. exf5 {[%clk 0:01:23.9]} 23... gxf5
{[%clk 0:01:28.3]} 24. Rbc1 {[%clk 0:01:02]} 24... Nxe2+ {[%clk 0:00:56.7]} 25.
Nxe2 {[%clk 0:01:00]} 25... Kf7 {[%clk 0:00:57.6]} 26. Be3 {[%clk 0:00:52.3]}
26... Rc8 {[%clk 0:00:50.2]} 27. f4 {[%clk 0:00:49.2]} 27... Bf6 {[%clk
0:00:45.5]} 28. Kf2 {[%clk 0:00:49]} 28... h5 {[%clk 0:00:44.8]} 29. c5 {[%clk
0:00:37.6]} 29... Rcd8 {[%clk 0:00:40.2]} 30. cxd6 {[%clk 0:00:34.8]} 30... Rxd6
{[%clk 0:00:41.1]} 31. Rxd6 {[%clk 0:00:33.2]} 31... Rxd6 {[%clk 0:00:42]} 32.
a3 {[%clk 0:00:22.2]} 32... Rd3 {[%clk 0:00:41.5]} 33. Rb1 {[%clk 0:00:20.5]}
33... Na5 {[%clk 0:00:38.1]} 34. Nc1 {[%clk 0:00:20.1]} 34... Rd1 {[%clk
0:00:35.1]} 35. Ke2 {[%clk 0:00:19]} 35... Rh1 {[%clk 0:00:34.6]} 36. h3 {[%clk
0:00:17.9]} 36... b5 {[%clk 0:00:34.5]} 37. Bd2 {[%clk 0:00:17.4]} 37... Nc6
{[%clk 0:00:33]} 38. Be3 {[%clk 0:00:17.1]} 38... h4 {[%clk 0:00:32.3]} 39. Kd3
{[%clk 0:00:16.9]} 39... Ne7 {[%clk 0:00:30.6]} 40. Ke2 {[%clk 0:00:16]} 40...
Nd5 {[%clk 0:00:31]} 41. Bd2 {[%clk 0:00:15.9]} 41... Rg1 {[%clk 0:00:31.2]} 42.
Kf2 {[%clk 0:00:16]} 42... Bd4+ {[%clk 0:00:31.7]} 43. Kf3 {[%clk 0:00:15.7]}
43... Bc5 {[%clk 0:00:26.3]} 44. b4 {[%clk 0:00:15.5]} 44... Bd4 {[%clk
0:00:26]} 45. Rb3 {[%clk 0:00:16.2]} 45... Rf1+ {[%clk 0:00:22]} 46. Ke2 {[%clk
0:00:15.2]} 46... Rf2+ {[%clk 0:00:21.5]} 47. Kd3 {[%clk 0:00:15.6]} 47... Bf6
{[%clk 0:00:20.1]} 48. Ne2 {[%clk 0:00:14.1]} 48... Rxg2 {[%clk 0:00:20.3]} 49.
Rb1 {[%clk 0:00:12.7]} 49... Rh2 {[%clk 0:00:19.3]} 50. Ng1 {[%clk 0:00:12.3]}
50... Be7 {[%clk 0:00:18.1]} 51. Rc1 {[%clk 0:00:10.5]} 51... Bd6 {[%clk
0:00:18]} 52. Rc6 {[%clk 0:00:10.7]} 52... Bxf4 {[%clk 0:00:17.6]} 53. Be1
{[%clk 0:00:09.6]} 53... Rh1 {[%clk 0:00:10.3]} 54. Bf2 {[%clk 0:00:09.7]} 54...
Bg3 {[%clk 0:00:10.8]} 55. Bd4 {[%clk 0:00:09.3]} 55... e5 {[%clk 0:00:10.3]}
56. Bc5 {[%clk 0:00:09.4]} 56... Nf4+ {[%clk 0:00:10.3]} 57. Kc2 {[%clk
0:00:09.4]} 57... Ne6 {[%clk 0:00:10.6]} 58. Nf3 {[%clk 0:00:08.6]} 58... e4
{[%clk 0:00:09.1]} 59. Nd2 {[%clk 0:00:06]} 59... Nxc5 {[%clk 0:00:08.9]} 60.
bxc5 {[%clk 0:00:05.7]} 60... e3 {[%clk 0:00:09.5]} 61. Nf3 {[%clk 0:00:06]}
61... e2 {[%clk 0:00:10.1]} 0-1